[Event "*** Titled Tuesday Blitz"]
[Site "Chess.com"]
[Date "2019.07.02"]
[Round "3"]
[White "Zubrrr"]
[Black "penguingm1"]
[Result "1-0"]
[WhiteElo "2745"]
[BlackElo "2951"]
[TimeControl "180+2"]
[EndTime "13:42:12 PDT"]
[Termination "Zubrrr won by resignation"]

1. c4 {[%clk 0:03:01.9]} 1... e6 {[%clk 0:03:00.9]} 2. g3 {[%clk 0:03:02.1]}
2... d5 {[%clk 0:03:01.7]} 3. Bg2 {[%clk 0:03:02.8]} 3... Nf6 {[%clk 0:02:54.9]}
4. Nf3 {[%clk 0:03:03.8]} 4... Be7 {[%clk 0:02:56.2]} 5. b3 {[%clk 0:03:03.7]}
5... O-O {[%clk 0:02:56.7]} 6. O-O {[%clk 0:03:04.5]} 6... c5 {[%clk 0:02:57.8]}
7. Bb2 {[%clk 0:03:04.6]} 7... b6 {[%clk 0:02:59.2]} 8. d3 {[%clk 0:03:05.5]}
8... Nc6 {[%clk 0:02:57.7]} 9. Nbd2 {[%clk 0:03:06.9]} 9... Bb7 {[%clk
0:02:55.2]} 10. e3 {[%clk 0:02:59.2]} 10... dxc4 {[%clk 0:02:38]} 11. Nxc4
{[%clk 0:02:54.5]} 11... Rc8 {[%clk 0:02:28.2]} 12. Qe2 {[%clk 0:02:44]} 12...
b5 {[%clk 0:02:26.6]} 13. Nce5 {[%clk 0:02:43.9]} 13... Qb6 {[%clk 0:02:24.2]}
14. Rac1 {[%clk 0:02:33.1]} 14... Rfd8 {[%clk 0:02:20.8]} 15. Rfd1 {[%clk
0:02:23.8]} 15... h6 {[%clk 0:02:00.4]} 16. Nxc6 {[%clk 0:01:44.2]} 16... Bxc6
{[%clk 0:01:25.3]} 17. e4 {[%clk 0:01:43.1]} 17... Bb7 {[%clk 0:01:15.1]} 18.
Ne5 {[%clk 0:01:14.5]} 18... Qa6 {[%clk 0:00:36.1]} 19. Ba1 {[%clk 0:01:04.7]}
19... Ne8 {[%clk 0:00:32.4]} 20. Qh5 {[%clk 0:01:02.6]} 20... Nd6 {[%clk
0:00:27.5]} 21. Ng4 {[%clk 0:00:50.5]} 21... Bf8 {[%clk 0:00:27.4]} 22. Nxh6+
{[%clk 0:00:34.4]} 22... gxh6 {[%clk 0:00:27.6]} 23. Qe5 {[%clk 0:00:35.4]}
23... f5 {[%clk 0:00:16.7]} 24. Qh8+ {[%clk 0:00:11.5]} 24... Kf7 {[%clk
0:00:16.9]} 25. Bf3 {[%clk 0:00:07.8]} 25... Ke8 {[%clk 0:00:13.7]} 26. Qh7
{[%clk 0:00:06.2]} 26... Rd7 {[%clk 0:00:13.2]} 27. Bh5+ {[%clk 0:00:06.8]}
27... Kd8 {[%clk 0:00:14.4]} 28. Qg8 {[%clk 0:00:08.2]} 28... Kc7 {[%clk
0:00:13.3]} 29. Qxe6 {[%clk 0:00:08.6]} 29... Rcd8 {[%clk 0:00:10.2]} 30. Rxc5+
{[%clk 0:00:09.2]} 30... Kb8 {[%clk 0:00:11.4]} 31. Be5 {[%clk 0:00:10.8]} 31...
Qb6 {[%clk 0:00:11.1]} 32. Rdc1 {[%clk 0:00:11.5]} 32... Ka8 {[%clk 0:00:12]}
33. b4 {[%clk 0:00:11.7]} 33... fxe4 {[%clk 0:00:12.9]} 34. d4 {[%clk
0:00:12.2]} 34... Nc4 {[%clk 0:00:12.6]} 35. Qxb6 {[%clk 0:00:12.4]} 35... axb6
{[%clk 0:00:14]} 36. Rxb5 {[%clk 0:00:13.9]} 36... Nxe5 {[%clk 0:00:15.2]} 37.
dxe5 {[%clk 0:00:15.1]} 37... Ka7 {[%clk 0:00:16.6]} 38. a4 {[%clk 0:00:15.8]}
38... Ba6 {[%clk 0:00:17.3]} 39. e6 {[%clk 0:00:17.3]} 39... Bxb5 {[%clk
0:00:17.3]} 40. exd7 {[%clk 0:00:18.8]} 40... Bxd7 {[%clk 0:00:18.3]} 41. b5
{[%clk 0:00:20.3]} 41... Bc5 {[%clk 0:00:19]} 42. Rd1 {[%clk 0:00:21.2]} 42...
e3 {[%clk 0:00:15.7]} 43. fxe3 {[%clk 0:00:20.2]} 43... Bxe3+ {[%clk 0:00:17.6]}
44. Kf1 {[%clk 0:00:21.1]} 44... Bh3+ {[%clk 0:00:17.4]} 45. Ke2 {[%clk
0:00:22.4]} 45... Rxd1 {[%clk 0:00:18.9]} 46. Kxd1 {[%clk 0:00:24.3]} 46... Bg1
{[%clk 0:00:20.4]} 47. Ke2 {[%clk 0:00:25.7]} 47... Kb8 {[%clk 0:00:19.6]} 48.
Kf3 {[%clk 0:00:25.4]} 48... Kc7 {[%clk 0:00:18.6]} 49. Bg6 {[%clk 0:00:26.1]}
49... Kd6 {[%clk 0:00:18.6]} 50. Bc2 {[%clk 0:00:27.6]} 50... Kc5 {[%clk
0:00:19.1]} 51. Bd1 {[%clk 0:00:28.9]} 51... Kb4 {[%clk 0:00:19.8]} 52. Bc2
{[%clk 0:00:30.3]} 52... Be6 {[%clk 0:00:16.8]} 53. Kg2 {[%clk 0:00:31.3]} 53...
Be3 {[%clk 0:00:17.4]} 54. Kf3 {[%clk 0:00:32.2]} 54... Bc1 {[%clk 0:00:17.6]}
55. h4 {[%clk 0:00:33.1]} 55... Bb3 {[%clk 0:00:13.1]} 56. Bxb3 {[%clk
0:00:34.1]} 56... Kxb3 {[%clk 0:00:15]} 57. a5 {[%clk 0:00:35.6]} 57... bxa5
{[%clk 0:00:12.9]} 58. b6 {[%clk 0:00:37.1]} 58... Ba3 {[%clk 0:00:14.3]} 59. g4
{[%clk 0:00:38.3]} 59... a4 {[%clk 0:00:14.5]} 60. g5 {[%clk 0:00:39.7]} 60...
hxg5 {[%clk 0:00:15]} 61. hxg5 {[%clk 0:00:41.3]} 61... Bd6 {[%clk 0:00:12.5]}
62. g6 {[%clk 0:00:42.9]} 62... Be5 {[%clk 0:00:12.7]} 63. b7 {[%clk 0:00:43.9]}
63... a3 {[%clk 0:00:13.8]} 64. g7 {[%clk 0:00:45.1]} 64... Bxg7 {[%clk
0:00:07.2]} 65. b8=Q+ {[%clk 0:00:45.9]} 65... Ka2 {[%clk 0:00:08.4]} 66. Qg8+
{[%clk 0:00:46.3]} 66... Kb1 {[%clk 0:00:09]} 67. Qh7+ {[%clk 0:00:47.3]} 67...
Ka2 {[%clk 0:00:05.3]} 68. Qxg7 {[%clk 0:00:48.2]} 68... Kb1 {[%clk 0:00:06.6]}
69. Qb7+ {[%clk 0:00:48.2]} 69... Ka1 {[%clk 0:00:07.3]} 70. Qc6 {[%clk
0:00:47.5]} 70... Kb1 {[%clk 0:00:06.9]} 71. Qb5+ {[%clk 0:00:48.1]} 71... Ka1
{[%clk 0:00:08.1]} 72. Qc4 {[%clk 0:00:48.5]} 72... Kb2 {[%clk 0:00:07.9]} 73.
Qb4+ {[%clk 0:00:49.3]} 73... Ka2 {[%clk 0:00:09.1]} 74. Ke3 {[%clk 0:00:50]}
74... Ka1 {[%clk 0:00:10]} 1-0

[Event "*** Titled Tuesday Blitz"]
[Site "Chess.com"]
[Date "2019.07.02"]
[Round "3"]
[White "chessking2151"]
[Black "GukeshDommaraju"]
[Result "1-0"]
[WhiteElo "2584"]
[BlackElo "2581"]
[TimeControl "180+2"]
[EndTime "13:42:32 PDT"]
[Termination "chessking2151 won by resignation"]

1. e4 {[%clk 0:03:01.9]} 1... c5 {[%clk 0:03:00.8]} 2. Nf3 {[%clk 0:03:01.3]}
2... Nc6 {[%clk 0:03:01.8]} 3. d4 {[%clk 0:03:00.7]} 3... cxd4 {[%clk
0:03:03.1]} 4. Nxd4 {[%clk 0:03:01.7]} 4... Nf6 {[%clk 0:03:03.5]} 5. Nc3 {[%clk
0:03:02.2]} 5... e5 {[%clk 0:03:04.8]} 6. Ndb5 {[%clk 0:03:02.9]} 6... d6 {[%clk
0:03:06]} 7. Bg5 {[%clk 0:03:03.9]} 7... a6 {[%clk 0:03:06.8]} 8. Na3 {[%clk
0:03:04.7]} 8... b5 {[%clk 0:03:08.3]} 9. Nd5 {[%clk 0:03:00]} 9... Be7 {[%clk
0:03:09.1]} 10. Bxf6 {[%clk 0:03:01.5]} 10... Bxf6 {[%clk 0:03:11]} 11. c4
{[%clk 0:03:02.4]} 11... b4 {[%clk 0:03:09.8]} 12. Nc2 {[%clk 0:03:03.6]} 12...
O-O {[%clk 0:03:10.9]} 13. Be2 {[%clk 0:03:03.1]} 13... a5 {[%clk 0:03:10.4]}
14. O-O {[%clk 0:03:03.6]} 14... Be6 {[%clk 0:03:09.4]} 15. b3 {[%clk
0:02:50.2]} 15... Bxd5 {[%clk 0:03:02.7]} 16. cxd5 {[%clk 0:02:42.5]} 16... Nd4
{[%clk 0:03:03.5]} 17. Nxd4 {[%clk 0:01:56.1]} 17... exd4 {[%clk 0:03:04.3]} 18.
Bc4 {[%clk 0:01:57.7]} 18... g6 {[%clk 0:02:55.2]} 19. Bb5 {[%clk 0:01:48.5]}
19... Bg7 {[%clk 0:02:38.4]} 20. Bc6 {[%clk 0:01:41.7]} 20... Rc8 {[%clk
0:02:39.3]} 21. Qd3 {[%clk 0:01:37.6]} 21... Qe7 {[%clk 0:02:21.7]} 22. Rfe1
{[%clk 0:01:32.3]} 22... Be5 {[%clk 0:02:18.4]} 23. g3 {[%clk 0:01:29.8]} 23...
Bg7 {[%clk 0:02:03.4]} 24. Rac1 {[%clk 0:01:16.6]} 24... Rc7 {[%clk 0:02:00.8]}
25. f4 {[%clk 0:01:15.3]} 25... Kh8 {[%clk 0:01:59.3]} 26. Kg2 {[%clk
0:01:12.3]} 26... g5 {[%clk 0:01:49.6]} 27. Rf1 {[%clk 0:00:40.1]} 27... gxf4
{[%clk 0:01:49.3]} 28. Rxf4 {[%clk 0:00:37.5]} 28... Bh6 {[%clk 0:01:46.2]} 29.
Qxd4+ {[%clk 0:00:38.4]} 29... f6 {[%clk 0:01:46.5]} 30. Rcf1 {[%clk 0:00:37.3]}
30... Bxf4 {[%clk 0:01:47.3]} 31. Rxf4 {[%clk 0:00:38.5]} 31... Qe5 {[%clk
0:01:44.8]} 32. Qxe5 {[%clk 0:00:29.8]} 32... dxe5 {[%clk 0:01:46.7]} 33. Rf2
{[%clk 0:00:29.9]} 33... Kg7 {[%clk 0:01:44.9]} 34. g4 {[%clk 0:00:23.8]} 34...
Rfc8 {[%clk 0:01:45.6]} 35. Rc2 {[%clk 0:00:23]} 35... Kf7 {[%clk 0:01:33]} 36.
Kf3 {[%clk 0:00:23.3]} 36... Ke7 {[%clk 0:01:33.1]} 37. Rc5 {[%clk 0:00:22.4]}
37... Ra7 {[%clk 0:01:31.4]} 38. Ke3 {[%clk 0:00:21.2]} 38... Kd6 {[%clk
0:01:32.4]} 39. Rc2 {[%clk 0:00:22.1]} 39... h5 {[%clk 0:01:24.4]} 40. Rf2
{[%clk 0:00:20.6]} 40... Rf8 {[%clk 0:01:22.9]} 41. gxh5 {[%clk 0:00:10.4]}
41... Rh7 {[%clk 0:01:22.9]} 42. Rf5 {[%clk 0:00:11.3]} 42... Rh6 {[%clk
0:01:24.3]} 43. Kf3 {[%clk 0:00:11.5]} 43... Kc5 {[%clk 0:01:21.8]} 44. Ba4
{[%clk 0:00:10.2]} 44... Rfh8 {[%clk 0:01:16.7]} 45. Kg4 {[%clk 0:00:10.2]}
45... Rg8+ {[%clk 0:01:17.8]} 46. Kf3 {[%clk 0:00:09.3]} 46... Kd6 {[%clk
0:01:19.1]} 47. Bb5 {[%clk 0:00:09.6]} 47... Rg1 {[%clk 0:01:17.7]} 48. Be8
{[%clk 0:00:06.6]} 48... Ke7 {[%clk 0:00:59.3]} 49. Bg6 {[%clk 0:00:07.2]} 49...
Rh8 {[%clk 0:01:00.1]} 50. Ke2 {[%clk 0:00:07.2]} 50... Ra1 {[%clk 0:00:58.4]}
51. d6+ {[%clk 0:00:06.7]} 51... Ke6 {[%clk 0:00:59.4]} 52. d7 {[%clk
0:00:07.2]} 52... Rxa2+ {[%clk 0:01:00.6]} 53. Kd3 {[%clk 0:00:08.3]} 53... Rd8
{[%clk 0:00:59.3]} 54. Be8 {[%clk 0:00:08.9]} 54... a4 {[%clk 0:00:53.6]} 55.
bxa4 {[%clk 0:00:08.4]} 55... b3 {[%clk 0:00:51.2]} 56. Rf1 {[%clk 0:00:05.9]}
56... Rxh2 {[%clk 0:00:39.4]} 57. Rb1 {[%clk 0:00:06.5]} 57... Rh3+ {[%clk
0:00:38.7]} 58. Kc4 {[%clk 0:00:06.6]} 58... f5 {[%clk 0:00:37.1]} 59. exf5+
{[%clk 0:00:07]} 59... Kxf5 {[%clk 0:00:38.1]} 60. Rxb3 {[%clk 0:00:07.4]} 60...
Rh4+ {[%clk 0:00:37.7]} 61. Kd5 {[%clk 0:00:07.5]} 61... Rxa4 {[%clk 0:00:34.6]}
62. Kd6 {[%clk 0:00:08.6]} 62... e4 {[%clk 0:00:29.2]} 63. Ke7 {[%clk
0:00:08.9]} 63... Raa8 {[%clk 0:00:17]} 64. Bg6+ {[%clk 0:00:09.3]} 64... Kg5
{[%clk 0:00:17.4]} 65. Bxe4 {[%clk 0:00:09.2]} 65... Rxd7+ {[%clk 0:00:16.2]}
66. Kxd7 {[%clk 0:00:08.9]} 66... Ra7+ {[%clk 0:00:17.7]} 67. Ke6 {[%clk
0:00:08.4]} 67... Kxh5 {[%clk 0:00:19.1]} 68. Kf6 {[%clk 0:00:07.1]} 68... Ra6+
{[%clk 0:00:19]} 69. Kf5 {[%clk 0:00:08.5]} 69... Ra5+ {[%clk 0:00:20.2]} 70.
Kf4 {[%clk 0:00:09.4]} 70... Kh6 {[%clk 0:00:21.3]} 71. Rb7 {[%clk 0:00:09.5]}
1-0

[Event "*** Titled Tuesday Blitz"]
[Site "Chess.com"]
[Date "2019.07.02"]
[Round "3"]
[White "AryanTari"]
[Black "MITerryble"]
[Result "0-1"]
[WhiteElo "2819"]
[BlackElo "2817"]
[TimeControl "180+2"]
[EndTime "13:42:39 PDT"]
[Termination "MITerryble won by resignation"]

1. Nf3 {[%clk 0:03:01.9]} 1... Nf6 {[%clk 0:03:00.8]} 2. c4 {[%clk 0:03:02.6]}
2... b6 {[%clk 0:03:00.7]} 3. g3 {[%clk 0:03:02.1]} 3... Bb7 {[%clk 0:03:02]} 4.
Bg2 {[%clk 0:03:01.7]} 4... g6 {[%clk 0:03:03.4]} 5. O-O {[%clk 0:02:58.7]} 5...
Bg7 {[%clk 0:03:04.6]} 6. d4 {[%clk 0:03:00]} 6... O-O {[%clk 0:03:05.7]} 7. d5
{[%clk 0:02:58.4]} 7... d6 {[%clk 0:02:48.3]} 8. Nc3 {[%clk 0:02:58.2]} 8... e5
{[%clk 0:02:45.5]} 9. e4 {[%clk 0:02:48.1]} 9... a5 {[%clk 0:02:45]} 10. Ne1
{[%clk 0:02:44.9]} 10... Na6 {[%clk 0:02:45.9]} 11. Nd3 {[%clk 0:02:46]} 11...
Nc5 {[%clk 0:02:46.7]} 12. Nxc5 {[%clk 0:02:43.1]} 12... dxc5 {[%clk 0:02:43.1]}
13. f4 {[%clk 0:02:31.7]} 13... Ne8 {[%clk 0:02:44.1]} 14. f5 {[%clk 0:02:23]}
14... Nd6 {[%clk 0:02:44.9]} 15. b3 {[%clk 0:02:23.7]} 15... Bc8 {[%clk
0:02:31.3]} 16. g4 {[%clk 0:02:19]} 16... g5 {[%clk 0:02:32.3]} 17. Be3 {[%clk
0:02:15.1]} 17... h6 {[%clk 0:02:26.1]} 18. Qd2 {[%clk 0:02:14.1]} 18... f6
{[%clk 0:02:27]} 19. h4 {[%clk 0:02:09.1]} 19... Kf7 {[%clk 0:02:27.2]} 20. Kf2
{[%clk 0:02:10.3]} 20... Rh8 {[%clk 0:02:27.2]} 21. Rh1 {[%clk 0:02:11.5]} 21...
Bd7 {[%clk 0:02:28]} 22. a4 {[%clk 0:02:10.1]} 22... Qe7 {[%clk 0:02:28.4]} 23.
Rh2 {[%clk 0:02:11]} 23... Rag8 {[%clk 0:02:26.8]} 24. Rah1 {[%clk 0:02:12.4]}
24... Ke8 {[%clk 0:02:25.8]} 25. Ne2 {[%clk 0:02:12.8]} 25... Kd8 {[%clk
0:02:24]} 26. Ng3 {[%clk 0:02:13.9]} 26... Be8 {[%clk 0:02:24.2]} 27. Bf3 {[%clk
0:02:13.8]} 27... Kc8 {[%clk 0:02:23.8]} 28. Ke2 {[%clk 0:02:14.6]} 28... Qf8
{[%clk 0:02:11]} 29. Kd1 {[%clk 0:02:15]} 29... Kb8 {[%clk 0:02:11.8]} 30. Kc1
{[%clk 0:02:15.9]} 30... Kc8 {[%clk 0:02:13]} 31. Rh3 {[%clk 0:02:17.1]} 31...
Kb8 {[%clk 0:02:14.1]} 32. Qh2 {[%clk 0:02:18.2]} 32... Kc8 {[%clk 0:02:15]} 33.
Kb1 {[%clk 0:02:19.2]} 33... Kb8 {[%clk 0:02:15.8]} 34. Ka1 {[%clk 0:02:20.6]}
34... Kc8 {[%clk 0:02:16.8]} 35. Qf2 {[%clk 0:02:07.7]} 35... Kb8 {[%clk
0:02:15.2]} 36. Ne2 {[%clk 0:02:08.7]} 36... Kc8 {[%clk 0:02:07.5]} 37. Nc1
{[%clk 0:02:09.8]} 37... Kb8 {[%clk 0:02:08.6]} 38. Nd3 {[%clk 0:02:10.7]} 38...
Nb7 {[%clk 0:02:02.6]} 39. Qd2 {[%clk 0:01:41.4]} 39... Bd7 {[%clk 0:01:54.4]}
40. Nc1 {[%clk 0:01:22]} 40... Nd6 {[%clk 0:01:52]} 41. Ne2 {[%clk 0:01:23]}
41... Be8 {[%clk 0:01:50.4]} 42. Ng3 {[%clk 0:01:23.5]} 42... Bf7 {[%clk
0:01:49.5]} 43. R3h2 {[%clk 0:01:11.7]} 43... Qe8 {[%clk 0:01:50.2]} 44. Rc1
{[%clk 0:01:10.5]} 44... Qe7 {[%clk 0:01:49.7]} 45. Ne2 {[%clk 0:01:10.1]} 45...
Qe8 {[%clk 0:01:47.8]} 46. Nc3 {[%clk 0:01:11.2]} 46... Qe7 {[%clk 0:01:47.4]}
47. Nd1 {[%clk 0:01:09.4]} 47... Be8 {[%clk 0:01:47.3]} 48. Nb2 {[%clk
0:01:09.9]} 48... Bf7 {[%clk 0:01:47.4]} 49. Nd3 {[%clk 0:01:09]} 49... Nb7
{[%clk 0:01:48.5]} 50. Rch1 {[%clk 0:01:09.6]} 50... Be8 {[%clk 0:01:48.8]} 51.
hxg5 {[%clk 0:01:10.2]} 51... hxg5 {[%clk 0:01:49.3]} 52. Rh7 {[%clk 0:01:11.4]}
52... Rxh7 {[%clk 0:01:48.3]} 53. Rxh7 {[%clk 0:01:13.3]} 53... Rh8 {[%clk
0:01:49.2]} 54. Qh2 {[%clk 0:01:14.3]} 54... Rxh7 {[%clk 0:01:50]} 55. Qxh7
{[%clk 0:01:16.2]} 55... Qf8 {[%clk 0:01:47.1]} 56. Nxe5 {[%clk 0:01:04.7]}
56... fxe5 {[%clk 0:01:43.9]} 57. Bxg5 {[%clk 0:01:06.3]} 57... Nd6 {[%clk
0:01:28.9]} 58. Bh4 {[%clk 0:01:06.9]} 58... Kb7 {[%clk 0:00:58.2]} 59. g5
{[%clk 0:00:58.4]} 59... Qf7 {[%clk 0:00:21.4]} 60. g6 {[%clk 0:00:34.9]} 60...
Qf8 {[%clk 0:00:19.1]} 61. Bg5 {[%clk 0:00:25.9]} 61... Nxf5 {[%clk 0:00:17.3]}
62. exf5 {[%clk 0:00:22.9]} 62... e4+ {[%clk 0:00:18.5]} 63. f6 {[%clk
0:00:10.3]} 63... Bxf6+ {[%clk 0:00:18.7]} 64. Bxf6 {[%clk 0:00:11.6]} 64...
Qxf6+ {[%clk 0:00:20.6]} 65. Ka2 {[%clk 0:00:13.5]} 65... Bxg6 {[%clk
0:00:15.5]} 66. Qd7 {[%clk 0:00:05.4]} 66... exf3 {[%clk 0:00:15.7]} 67. b4
{[%clk 0:00:05.4]} 67... f2 {[%clk 0:00:13.5]} 68. bxc5 {[%clk 0:00:06.4]} 68...
bxc5 {[%clk 0:00:11.8]} 69. Qb5+ {[%clk 0:00:07.2]} 69... Qb6 {[%clk 0:00:12.8]}
0-1

[Event "*** Titled Tuesday Blitz"]
[Site "Chess.com"]
[Date "2019.07.02"]
[Round "3"]
[White "tteshan"]
[Black "monalize"]
[Result "0-1"]
[WhiteElo "2235"]
[BlackElo "2335"]
[TimeControl "180+2"]
[EndTime "13:42:41 PDT"]
[Termination "monalize won by resignation"]

1. d4 {[%clk 0:03:01.9]} 1... d5 {[%clk 0:02:57.5]} 2. c4 {[%clk 0:03:00.6]}
2... dxc4 {[%clk 0:02:57.7]} 3. e3 {[%clk 0:02:59.4]} 3... Nf6 {[%clk
0:02:57.6]} 4. Bxc4 {[%clk 0:02:57.8]} 4... e6 {[%clk 0:02:58.4]} 5. Nc3 {[%clk
0:02:57.6]} 5... a6 {[%clk 0:02:58.3]} 6. Nge2 {[%clk 0:02:56.7]} 6... c5 {[%clk
0:02:55.9]} 7. O-O {[%clk 0:02:54.5]} 7... b5 {[%clk 0:02:55.7]} 8. Bd3 {[%clk
0:02:52.3]} 8... Bb7 {[%clk 0:02:54.9]} 9. a4 {[%clk 0:02:46.6]} 9... c4 {[%clk
0:02:42.9]} 10. Bb1 {[%clk 0:02:44.3]} 10... b4 {[%clk 0:02:43.5]} 11. Na2
{[%clk 0:02:41.6]} 11... a5 {[%clk 0:02:42.8]} 12. f3 {[%clk 0:02:27.9]} 12...
Nbd7 {[%clk 0:02:12.2]} 13. Kh1 {[%clk 0:02:23.9]} 13... Be7 {[%clk 0:02:09.9]}
14. e4 {[%clk 0:02:19.6]} 14... Rc8 {[%clk 0:02:04.8]} 15. Be3 {[%clk
0:02:11.6]} 15... Qc7 {[%clk 0:01:48]} 16. Qe1 {[%clk 0:01:56.5]} 16... Nb6
{[%clk 0:01:38.6]} 17. Nac1 {[%clk 0:01:52]} 17... Bc6 {[%clk 0:01:27.3]} 18.
Bf4 {[%clk 0:01:41.6]} 18... Qb7 {[%clk 0:01:17.3]} 19. Be5 {[%clk 0:01:28.3]}
19... Bxa4 {[%clk 0:00:58.6]} 20. Qg3 {[%clk 0:01:24.3]} 20... O-O {[%clk
0:00:51.5]} 21. Bxf6 {[%clk 0:01:15]} 21... Bxf6 {[%clk 0:00:50.3]} 22. e5
{[%clk 0:01:16.4]} 22... Be7 {[%clk 0:00:49]} 23. Nf4 {[%clk 0:01:15.8]} 23...
Kh8 {[%clk 0:00:18.1]} 24. Nh5 {[%clk 0:01:09.5]} 24... Rg8 {[%clk 0:00:18.2]}
25. Qh3 {[%clk 0:01:06.6]} 25... g6 {[%clk 0:00:14.2]} 26. Nf6 {[%clk
0:01:04.8]} 26... Bxf6 {[%clk 0:00:14.3]} 27. exf6 {[%clk 0:01:06.7]} 27... Bd7
{[%clk 0:00:13.4]} 28. Rxa5 {[%clk 0:00:58.9]} 28... Nd5 {[%clk 0:00:14]} 29.
Ne2 {[%clk 0:00:53.1]} 29... Qc7 {[%clk 0:00:14.4]} 30. Rc5 {[%clk 0:00:51.7]}
30... Qd8 {[%clk 0:00:15.4]} 31. Rxc8 {[%clk 0:00:35.6]} 31... Bxc8 {[%clk
0:00:15.3]} 32. Qh4 {[%clk 0:00:33.9]} 32... Qxf6 {[%clk 0:00:15.3]} 33. Qxf6+
{[%clk 0:00:34.5]} 33... Nxf6 {[%clk 0:00:16.3]} 34. Rc1 {[%clk 0:00:34.6]}
34... Ba6 {[%clk 0:00:17.2]} 35. Ng3 {[%clk 0:00:33.6]} 35... Nd5 {[%clk
0:00:17.1]} 36. Ne4 {[%clk 0:00:33.1]} 36... Rc8 {[%clk 0:00:17.5]} 37. Nd6
{[%clk 0:00:32.9]} 37... Rc7 {[%clk 0:00:18.5]} 38. Kg1 {[%clk 0:00:27.4]} 38...
Kg7 {[%clk 0:00:19.6]} 39. Ba2 {[%clk 0:00:27.3]} 39... c3 {[%clk 0:00:19.1]}
40. bxc3 {[%clk 0:00:26.7]} 40... bxc3 {[%clk 0:00:19.2]} 41. Ne4 {[%clk
0:00:27.6]} 41... c2 {[%clk 0:00:18.3]} 42. Bb3 {[%clk 0:00:27.9]} 42... Bd3
{[%clk 0:00:18.9]} 43. Nf2 {[%clk 0:00:25.7]} 43... Be2 {[%clk 0:00:16.9]} 44.
Rxc2 {[%clk 0:00:25.7]} 44... Rxc2 {[%clk 0:00:17.2]} 45. Bxc2 {[%clk
0:00:27.6]} 45... Kf6 {[%clk 0:00:17.5]} 46. Ne4+ {[%clk 0:00:27]} 46... Ke7
{[%clk 0:00:18.6]} 47. Kf2 {[%clk 0:00:28.3]} 47... Bb5 {[%clk 0:00:18.3]} 48.
Nc5 {[%clk 0:00:28.9]} 48... h6 {[%clk 0:00:17.1]} 49. g3 {[%clk 0:00:28.4]}
49... g5 {[%clk 0:00:16.8]} 50. Be4 {[%clk 0:00:28.3]} 50... Nb4 {[%clk
0:00:17.6]} 51. Nb3 {[%clk 0:00:27]} 51... Kd6 {[%clk 0:00:17.7]} 52. Ke3 {[%clk
0:00:27.4]} 52... Bc4 {[%clk 0:00:18.6]} 53. Nd2 {[%clk 0:00:28]} 53... Bd5
{[%clk 0:00:19]} 54. Bxd5 {[%clk 0:00:28.5]} 54... Kxd5 {[%clk 0:00:19.1]} 55.
Ne4 {[%clk 0:00:27.1]} 55... Nc2+ {[%clk 0:00:19.7]} 56. Kd3 {[%clk 0:00:28.1]}
56... Nxd4 {[%clk 0:00:20.7]} 57. Nf6+ {[%clk 0:00:29.1]} 57... Ke5 {[%clk
0:00:21.2]} 58. Ng4+ {[%clk 0:00:30.1]} 58... Kd5 {[%clk 0:00:22.4]} 59. Nf6+
{[%clk 0:00:30.4]} 59... Ke5 {[%clk 0:00:22.5]} 60. Ng4+ {[%clk 0:00:31.4]}
60... Kd5 {[%clk 0:00:23.6]} 61. Ne3+ {[%clk 0:00:32.4]} 61... Kc5 {[%clk
0:00:24.4]} 62. f4 {[%clk 0:00:29.9]} 62... gxf4 {[%clk 0:00:24.5]} 63. gxf4
{[%clk 0:00:31.8]} 63... f5 {[%clk 0:00:25.3]} 64. Nf1 {[%clk 0:00:28.3]} 64...
Nf3 {[%clk 0:00:26]} 65. Ke3 {[%clk 0:00:28.3]} 65... Nh4 {[%clk 0:00:26.8]} 66.
Kf2 {[%clk 0:00:28.7]} 66... Kd5 {[%clk 0:00:27.4]} 67. Kg3 {[%clk 0:00:29.5]}
67... Ng6 {[%clk 0:00:28.6]} 68. Ne3+ {[%clk 0:00:30]} 68... Ke4 {[%clk
0:00:29.6]} 69. Ng2 {[%clk 0:00:30]} 69... h5 {[%clk 0:00:29.8]} 70. h3 {[%clk
0:00:21.5]} 70... h4+ {[%clk 0:00:27.3]} 71. Kh2 {[%clk 0:00:17.9]} 71... Kf3
{[%clk 0:00:26.9]} 72. Kg1 {[%clk 0:00:09.3]} 72... Kg3 {[%clk 0:00:27.5]} 73.
Ne3 {[%clk 0:00:08.2]} 73... Nxf4 {[%clk 0:00:27.5]} 0-1